[Event "FRA-ch Women 2018"]
[Site "Nimes"]
[Date "2018.08.20"]
[Round "3"]
[White "Bollengier, Andreea"]
[Black "Guichard, Pauline"]
[Result "0-1"]
[ECO "C47"]
[WhiteElo "2219"]
[BlackElo "2365"]
[Annotator "NA"]
[PlyCount "67"]
[EventDate "2018.08.18"]
[EventType "tourn"]
[EventCountry "FRA"]
[SourceTitle "playchess.com"]
[Source "ChessBase"]
[SourceQuality "1"]
[TimeControl "40/5400+30:1800+30"]

1. e4 {[%emt 0:00:00]} e5 {[%emt 0:00:01]} 2. Nf3 {[%emt 0:00:00]} Nc6 {[%emt 0:00:05]} 3. Nc3 {[%emt 0:00:00]} Nf6 {[%emt 0:00:10]} 4. d4 {[%emt 0:00:00]} exd4 {[%emt 0:00:18]} 5. Nd5 {[%emt 0:00:00]} Nb4 {[%emt 0:11:05]} 6. Bc4 {[%emt 0:11:03]} Nbxd5 {[%emt 0:05:25]} 7. exd5 {[%emt 0:00:13]} Qe7+ {[%emt 0:10:45]} 8. Kf1 {[%emt 0:19:17]} Qc5 {[%emt 0:02:18]} 9. Qxd4 {[%emt 0:00:21]} b5 {[%emt 0:02:43]} 10. Bb3 {[%emt 0:09:45]} Bb7 {[%emt 0:08:26]} 11. Bg5 {[%emt 0:04:36]} Qxd4 {[%emt 0:11:10]} 12. Nxd4 {[%emt 0:00:05]} a6 {[%emt 0:00:02]} 13. Re1+ {[%emt 0:01:45]} Kd8 {[%emt 0:00:06]} 14. Nf5 {[%emt 0:05:09]} h6 {[%emt 0:04:40]} 15. Bxf6+ {[%emt 0:02:25]} gxf6 {[%emt 0:00:05]} 16. d6 {[%emt 0:07:02]} Bxd6 {[%emt 0:03:33]} 17. Nxd6 {[%emt 0:00:05]} cxd6 {[%emt 0:00:03]} 18. Bxf7 {[%emt 0:03:16]} Rh7 {[%emt 0:00:18]} 19. Bb3 {[%emt 0:11:10]} a5 {[%emt 0:00:10]} 20. c3 {[%emt 0:04:28]} Rg7 {[%emt 0:07:37]} 21. f3 {[%emt 0:00:21]} a4 {[%emt 0:00:03]} 22. Bc2 {[%emt 0:00:41]} a3 {[%emt 0:00:15]} 23. b3 {[%emt 0:07:49]} Rc8 {[%emt 0:01:02]} 24. Re3 {[%emt 0:00:01]} d5 {[%emt 0:03:43]} 25. Bd1 {[%emt 0:06:44]} b4 {[%emt 0:06:19]} 26. cxb4 {[%emt 0:00:59]} d4 {[%emt 0:00:06]} 27. Re1 {[%emt 0:00:30]} d3 {[%emt 0:03:06]} 28. Kf2 {[%emt 0:01:29]} Rc1 {[%emt 0:00:51]} 29. Re3 {[%emt 0:01:33]} Ra1 {[%emt 0:07:56]} 30. Rxd3 {[%emt 0:00:03]} Rxa2+ {[%emt 0:00:04]} 31. Ke3 {[%emt 0:00:01]} Rgxg2 {[%emt 0:00:18]} 32. Rd6 {[%emt 0:04:03]} Rab2 {[%emt 0:01:01]} 33. Rb6 {[%emt 0:00:37]} a2 {[%emt 0:01:02]} 34. Kd4 0-1

[Event "FRA-ch Women 2018"]
[Site "Nimes"]
[Date "2018.08.20"]
[Round "3"]
[White "Haussernot, Cecile"]
[Black "Safranska, Anda"]
[Result "1-0"]
[ECO "B06"]
[WhiteElo "2198"]
[BlackElo "2193"]
[Annotator "NA"]
[PlyCount "127"]
[EventDate "2018.08.18"]
[EventType "tourn"]
[EventCountry "FRA"]
[SourceTitle "playchess.com"]
[Source "ChessBase"]
[SourceQuality "1"]
[TimeControl "40/5400+30:1800+30"]

1. e4 {[%emt 0:02:26]} g6 {[%emt 0:00:00]} 2. d4 {[%emt 0:00:15]} Bg7 {[%emt 0:00:00]} 3. Be3 {[%emt 0:00:13]} c6 {[%emt 0:00:37]} 4. Nc3 {[%emt 0:03:23]} d5 {[%emt 0:00:21]} 5. Nf3 {[%emt 0:09:21]} Bg4 {[%emt 0:05:01]} 6. h3 {[%emt 0:03:04]} Bxf3 {[%emt 0:01:18]} 7. Qxf3 {[%emt 0:00:08]} e6 {[%emt 0:02:07]} 8. O-O-O {[%emt 0:01:46]} Ne7 {[%emt 0:02:00]} 9. h4 {[%emt 0:00:34]} h5 {[%emt 0:03:50]} 10. g4 {[%emt 0:09:08]} hxg4 {[%emt 0:14:47]} 11. Qxg4 {[%emt 0:00:08]} dxe4 {[%emt 0:16:09]} 12. Bg5 {[%emt 0:04:51]} f5 {[%emt 0:05:54]} 13. Qg3 {[%emt 0:02:26]} Nd7 {[%emt 0:01:25]} 14. Bc4 {[%emt 0:07:11]} Qb8 {[%emt 0:04:50]} 15. Qg2 {[%emt 0:06:49]} Nd5 {[%emt 0:05:59]} 16. Bd2 {[%emt 0:03:57]} Nf8 {[%emt 0:02:24]} 17. h5 {[%emt 0:00:39]} Nf4 {[%emt 0:00:37]} 18. Qg5 {[%emt 0:02:03]} Nxh5 {[%emt 0:00:46]} 19. Bxe6 {[%emt 0:03:09]} Bh6 {[%emt 0:07:40]} 20. Qg1 {[%emt 0:00:13]} Bxd2+ {[%emt 0:02:40]} 21. Rxd2 {[%emt 0:00:06]} Qd6 {[%emt 0:01:28]} 22. d5 {[%emt 0:02:47]} Rd8 {[%emt 0:06:33]} 23. Kb1 {[%emt 0:07:52]} Qe7 {[%emt 0:00:33]} 24. f3 {[%emt 0:01:20]} Qf6 {[%emt 0:05:59]} 25. Rhh2 {[%emt 0:10:14]} Nxe6 {[%emt 0:03:07]} 26. dxe6 {[%emt 0:00:07]} Rxd2 {[%emt 0:01:34]} 27. Rxd2 {[%emt 0:00:03]} Qxe6 {[%emt 0:01:48]} 28. fxe4 {[%emt 0:02:02]} O-O {[%emt 0:00:57]} 29. e5 {[%emt 0:02:13]} Qxe5 {[%emt 0:02:20]} 30. Qxg6+ {[%emt 0:00:09]} Ng7 {[%emt 0:00:04]} 31. Rd1 {[%emt 0:00:41]} f4 {[%emt 0:00:27]} 32. Rh1 {[%emt 0:02:54]} Qf5 {[%emt 0:00:16]} 33. Qg2 {[%emt 0:01:56]} f3 {[%emt 0:00:07]} 34. Qf2 {[%emt 0:00:01]} b6 {[%emt 0:00:17]} 35. a3 {[%emt 0:01:09]} Rf6 {[%emt 0:00:35]} 36. Rg1 {[%emt 0:00:29]} Kf7 {[%emt 0:00:15]} 37. Qg3 {[%emt 0:00:37]} Rg6 {[%emt 0:00:40]} 38. Qc7+ {[%emt 0:00:07]} Kg8 {[%emt 0:00:09]} 39. Qb8+ {[%emt 0:00:19]} Kh7 {[%emt 0:00:25]} 40. Rh1+ {[%emt 0:01:03]} Rh6 {[%emt 0:00:27]} 41. Rf1 {[%emt 0:30:13]} Qh3 {[%emt 0:33:31]} 42. Rc1 {[%emt 0:00:19]} Re6 {[%emt 0:00:00]} 43. Qf4 {[%emt 0:00:00]} Qf5 {[%emt 0:00:00]} 44. Qg3 {[%emt 0:00:00]} Rg6 {[%emt 0:00:00]} 45. Qh4+ {[%emt 0:00:00]} Rh6 {[%emt 0:00:00]} 46. Qg3 {[%emt 0:00:00]} Rh3 {[%emt 0:00:00]} 47. Qf2 {[%emt 0:00:00]} Qf4 {[%emt 0:00:00]} 48. Qf1 {[%emt 0:00:00]} Rh2 {[%emt 0:00:00]} 49. Qd3+ {[%emt 0:00:00]} Qf5 {[%emt 0:00:00]} 50. Ne4 {[%emt 0:00:00]} Rg2 {[%emt 0:00:00]} 51. Rf1 {[%emt 0:00:00]} f2 {[%emt 0:00:00]} 52. Nxf2 {[%emt 0:00:00]} Qxd3 {[%emt 0:00:00]} 53. Nxd3 {[%emt 0:00:00]} Kg8 {[%emt 0:00:00]} 54. Ne5 {[%emt 0:00:00]} c5 {[%emt 0:00:00]} 55. Nc6 {[%emt 0:00:00]} Re2 {[%emt 0:00:00]} 56. Nxa7 {[%emt 0:00:00]} Re6 {[%emt 0:00:00]} 57. Nb5 {[%emt 0:00:00]} Ne8 {[%emt 0:00:00]} 58. Ka2 {[%emt 0:00:00]} Nf6 {[%emt 0:00:00]} 59. Kb3 {[%emt 0:00:00]} Kf7 {[%emt 0:01:21]} 60. Nc7 {[%emt 0:00:00]} Rd6 {[%emt 0:00:11]} 61. Kc4 {[%emt 0:00:00]} Rd2 {[%emt 0:01:04]} 62. Kc3 {[%emt 0:00:00]} Rd7 {[%emt 0:01:06]} 63. Ne8 {[%emt 0:00:00]} Kxe8 {[%emt 0:00:05]} 64. Rxf6 {[%emt 0:00:00]} 1-0

[Event "FRA-ch Women 2018"]
[Site "Nimes"]
[Date "2018.08.20"]
[Round "3"]
[White "Afraoui, Anaelle"]
[Black "Milliet, Sophie"]
[Result "0-1"]
[ECO "B91"]
[WhiteElo "2041"]
[BlackElo "2389"]
[Annotator "NA"]
[PlyCount "80"]
[EventDate "2018.08.18"]
[EventType "tourn"]
[EventCountry "FRA"]
[SourceTitle "playchess.com"]
[Source "ChessBase"]
[SourceQuality "1"]
[TimeControl "40/5400+30:1800+30"]

1. e4 {[%emt 0:00:00]} c5 {[%emt 0:04:58]} 2. Nf3 {[%emt 0:00:00]} d6 {[%emt 0:00:05]} 3. d4 {[%emt 0:00:00]} cxd4 {[%emt 0:00:03]} 4. Nxd4 {[%emt 0:00:00]} Nf6 {[%emt 0:00:04]} 5. Nc3 {[%emt 0:00:04]} a6 6. g3 {[%emt 0:00:09]} e5 {[%emt 0:00:24]} 7. Nb3 {[%emt 0:00:08]} Be7 {[%emt 0:00:18]} 8. Bg2 {[%emt 0:00:09]} b5 {[%emt 0:01:24]} 9. a4 {[%emt 0:00:18]} b4 {[%emt 0:00:19]} 10. Nd5 {[%emt 0:00:08]} Nxd5 {[%emt 0:00:58]} 11. Qxd5 {[%emt 0:00:22]} Ra7 {[%emt 0:00:37]} 12. Be3 {[%emt 0:01:23]} Be6 {[%emt 0:01:31]} 13. Qd3 {[%emt 0:04:32]} Rb7 {[%emt 0:00:57]} 14. O-O {[%emt 0:01:17]} O-O {[%emt 0:10:38]} 15. Rfc1 {[%emt 0:03:59]} a5 {[%emt 0:19:56]} 16. Nd2 {[%emt 0:08:48]} Qc7 {[%emt 0:06:40]} 17. c3 {[%emt 0:05:14]} b3 {[%emt 0:09:13]} 18. Bf1 {[%emt 0:16:17]} Nd7 {[%emt 0:04:55]} 19. Nc4 {[%emt 0:14:45]} Nc5 {[%emt 0:00:53]} 20. Bxc5 {[%emt 0:03:53]} Qxc5 {[%emt 0:00:03]} 21. Rd1 {[%emt 0:01:08]} g6 {[%emt 0:10:24]} 22. Qe3 {[%emt 0:05:37]} Qc7 {[%emt 0:02:44]} 23. Na3 {[%emt 0:01:02]} Rd8 {[%emt 0:05:49]} 24. Nb5 {[%emt 0:03:47]} Qb8 {[%emt 0:00:11]} 25. Rd2 {[%emt 0:02:08]} Rdd7 {[%emt 0:00:41]} 26. Rad1 {[%emt 0:04:38]} Qf8 {[%emt 0:03:18]} 27. c4 {[%emt 0:02:55]} f5 {[%emt 0:07:26]} 28. exf5 {[%emt 0:00:59]} gxf5 {[%emt 0:00:01]} 29. f4 {[%emt 0:11:35]} e4 {[%emt 0:00:58]} 30. Qxb3 {[%emt 0:00:30]} Bd8 {[%emt 0:00:19]} 31. Kh1 {[%emt 0:01:07]} Bf7 {[%emt 0:05:15]} 32. Be2 {[%emt 0:02:11]} Rb6 {[%emt 0:02:03]} 33. Qc3 {[%emt 0:02:07]} Rc6 {[%emt 0:00:09]} 34. Nd4 {[%emt 0:01:37]} Rc5 {[%emt 0:00:07]} 35. Nb3 {[%emt 0:00:32]} Rc8 {[%emt 0:01:08]} 36. Nxa5 {[%emt 0:02:04]} e3 {[%emt 0:01:27]} 37. Rc2 {[%emt 0:00:58]} Qe8 {[%emt 0:01:33]} 38. Kg2 {[%emt 0:01:15]} Bxa5 {[%emt 0:00:31]} 39. Qxa5 {[%emt 0:00:35]} Qe4+ {[%emt 0:00:03]} 40. Kg1 {[%emt 0:01:06]} Qxc2 {[%emt 0:00:06]} 0-1

[Event "FRA-ch Women 2018"]
[Site "Nimes"]
[Date "2018.08.21"]
[Round "4"]
[White "Milliet, Sophie"]
[Black "Safranska, Anda"]
[Result "1-0"]
[ECO "B04"]
[WhiteElo "2389"]
[BlackElo "2193"]
[Annotator "NA"]
[PlyCount "111"]
[EventDate "2018.08.18"]
[EventType "tourn"]
[EventCountry "FRA"]
[SourceTitle "playchess.com"]
[Source "ChessBase"]
[SourceQuality "1"]
[TimeControl "40/5400+30:1800+30"]

1. e4 {[%emt 0:02:04]} Nf6 {[%emt 0:00:00]} 2. e5 {[%emt 0:00:04]} Nd5 {[%emt 0:00:00]} 3. d4 {[%emt 0:00:04]} d6 {[%emt 0:00:00]} 4. Nf3 {[%emt 0:00:03]} dxe5 {[%emt 0:00:08]} 5. Nxe5 {[%emt 0:00:05]} c6 {[%emt 0:00:05]} 6. Bd3 {[%emt 0:00:31]} Nd7 {[%emt 0:00:13]} 7. Nf3 {[%emt 0:00:06]} g6 {[%emt 0:00:16]} 8. O-O {[%emt 0:03:11]} Bg7 {[%emt 0:00:09] B04: Alekhine's Defence: 4 Nf3} 9. Re1 {[%emt 0:07:10]} O-O {[%emt 0:00:08]} 10. h3 {[%emt 0:00:53]} Re8 $146 {[%emt 0:00:27]} ({Predecessor:} 10... Qc7 11. c4 Nf4 12. Rxe7 Nxd3 13. Qxd3 Qd6 14. Re1 Nf6 15. Be3 Bf5 16. Qb3 {1-0 (38) Movsesian,S (2651)-Orfalea,M (2215) Panormo 2002}) 11. c4 {[%emt 0:01:33]} Nb4 {[%emt 0:02:52]} 12. Bf1 {[%emt 0:00:37]} e5 {[%emt 0:00:35]} 13. Bg5 {[%emt 0:09:52]} f6 $1 {[%emt 0:01:48]} 14. Bd2 {[%emt 0:00:15]} Na6 {[%emt 0:01:53]} 15. dxe5 {[%emt 0:01:52]} Nxe5 {[%emt 0:00:10]} 16. Nxe5 {[%emt 0:00:04]} fxe5 {[%emt 0:01:47]} 17. Nc3 {[%emt 0:00:43]} Nc5 {[%emt 0:00:24]} 18. Be3 {[%emt 0:01:52]} Qe7 {[%emt 0:06:09]} 19. b4 {[%emt 0:06:29]} Ne6 {[%emt 0:00:11]} 20. c5 {[%emt 0:00:10]} Rd8 {[%emt 0:09:35]} 21. Qc1 {[%emt 0:07:54]} Qh4 {[%emt 0:03:28]} 22. g3 {[%emt 0:19:23]} Qxb4 {[%emt 0:01:40]} 23. Rb1 {[%emt 0:00:03]} Qa5 {[%emt 0:00:22]} 24. Ne4 {[%emt 0:12:16]} Qc7 {[%emt 0:01:54]} 25. Bc4 {[%emt 0:01:04]} Kh8 {[%emt 0:00:09]} 26. Nd6 {[%emt 0:03:21]} b5 {[%emt 0:00:42]} 27. Bb3 {[%emt 0:03:09]} Rxd6 {[%emt 0:02:40]} 28. cxd6 {[%emt 0:00:04]} Qxd6 {[%emt 0:00:08]} 29. Qd1 {[%emt 0:02:21]} Qc7 {[%emt 0:00:53]} 30. Rc1 {[%emt 0:00:53]} Bd7 {[%emt 0:00:15]} 31. Qd3 {[%emt 0:02:49]} a6 {[%emt 0:05:59]} 32. Rcd1 {[%emt 0:00:19]} Nd4 {[%emt 0:01:27]} 33. Bxd4 $11 exd4 {[%emt 0:00:06]} 34. Re7 {[%emt 0:01:37]} Qd6 {[%emt 0:00:13]} 35. Rde1 {[%emt 0:01:01]} Bf6 {[%emt 0:04:56]} 36. Rf7 {[%emt 0:02:29]} Rf8 {[%emt 0:02:34]} 37. Rxf8+ {[%emt 0:01:19]} Qxf8 {[%emt 0:00:05]} 38. Qe4 {[%emt 0:01:56]} Qd6 {[%emt 0:02:18]} 39. Be6 {[%emt 0:07:15]} Kg7 {[%emt 0:03:50]} 40. Bxd7 {[%emt 0:01:12]} Qxd7 {[%emt 0:00:05]} 41. Rc1 {[%emt 0:30:41]} Bg5 {[%emt 1:01:07]} 42. Qxc6 {[%emt 0:00:00]} Qf7 {[%emt 0:00:00]} 43. Rc2 {[%emt 0:00:00]} Kh6 {[%emt 0:00:00]} 44. Qe4 {[%emt 0:00:00]} Qd7 {[%emt 0:00:00]} 45. h4 {[%emt 0:00:00]} Bd8 {[%emt 0:00:00]} 46. Rc5 {[%emt 0:00:00]} Bb6 {[%emt 0:00:00]} 47. Qf4+ {[%emt 0:00:00]} Kg7 {[%emt 0:00:00]} 48. Qe5+ {[%emt 0:00:00]} Kh6 {[%emt 0:00:00]} 49. Qg5+ {[%emt 0:00:00]} Kg7 {[%emt 0:00:00]} 50. Re5 {[%emt 0:00:00]} Kf7 {[%emt 0:00:00]} 51. Qf4+ {[%emt 0:00:12]} Kg7 {[%emt 0:00:00]} 52. Qe4 {[%emt 0:00:21]} Kf7 {[%emt 0:00:00]} 53. h5 {[%emt 0:01:16]} Qd6 {[%emt 0:00:00]} 54. Rd5 {[%emt 0:01:55]} Qc7 {[%emt 0:00:00]} 55. Qg4 {[%emt 0:00:43]} Kf6 {[%emt 0:00:00]} 56. Rd7 {Kg7} 1-0

[Event "FRA-ch Women 2018"]
[Site "Nimes"]
[Date "2018.08.22"]
[Round "5"]
[White "Navrotescu, Andreea-Cristiana"]
[Black "Milliet, Sophie"]
[Result "0-1"]
[ECO "A36"]
[WhiteElo "2247"]
[BlackElo "2389"]
[Annotator "NA"]
[PlyCount "80"]
[EventDate "2018.08.18"]
[EventType "tourn"]
[EventCountry "FRA"]
[SourceTitle "playchess.com"]
[Source "ChessBase"]
[SourceQuality "1"]
[TimeControl "40/5400+30:1800+30"]

1. g3 {[%emt 0:00:00]} c5 {[%emt 0:04:24]} 2. c4 {[%emt 0:00:00]} Nc6 {[%emt 0:00:10]} 3. Bg2 {[%emt 0:00:00]} g6 {[%emt 0:00:13]} 4. Nc3 {[%emt 0:00:20]} Bg7 {[%emt 0:00:04]} 5. e4 {[%emt 0:00:07]} d6 {[%emt 0:00:17]} 6. Nge2 {[%emt 0:00:13]} Nf6 {[%emt 0:00:07]} 7. d3 {[%emt 0:00:37]} O-O {[%emt 0:00:14]} 8. O-O {[%emt 0:01:08]} Rb8 {[%emt 0:00:11]} 9. Rb1 {[%emt 0:00:21]} a6 {[%emt 0:00:51] LiveBook: 78 Games} 10. a4 {[%emt 0:00:26]} Ne8 {[%emt 0:07:03]} 11. Be3 {[%emt 0:00:14]} e5 {[%emt 0:00:29] A36: Symmetrical English vs ...g6: 4 Bg2 Bg7} (11... Nc7 12. d4 cxd4 13. Nxd4 Ne6 14. Nde2 Nc5 15. b4 Nd7 16. f4 a5 17. b5 Nb4 18. Nd5 Nc5 19. Nxb4 axb4 20. Rxb4 {0-1 (53) Eljanov,P (2711)-Amonatov,F (2636) Riadh 2017}) 12. f4 $146 {[%emt 0:04:33]} ({Predecessor:} 12. Qd2 Nc7 13. Bh6 Be6 14. Bxg7 Kxg7 15. f4 f6 16. Nd5 b5 17. b3 Nd4 18. Nxd4 cxd4 19. Nb4 {1-0 (58) Foisor,M (2155)-Paulet,I (2342) Eforie Nord 2009}) 12... exf4 {[%emt 0:01:06]} 13. Nxf4 {[%emt 0:03:27]} Nc7 {[%emt 0:10:19]} 14. Qd2 {[%emt 0:05:02]} b5 {[%emt 0:08:37]} 15. axb5 {[%emt 0:00:17]} axb5 {[%emt 0:00:03]} 16. b3 {[%emt 0:01:06]} b4 {[%emt 0:08:29]} 17. Ncd5 {[%emt 0:00:26]} Nxd5 {[%emt 0:02:23]} 18. Nxd5 {[%emt 0:00:43]} Be6 {[%emt 0:01:11]} 19. Nf4 {[%emt 0:05:49]} Qd7 {[%emt 0:06:43]} 20. Ne2 $15 {[%emt 0:02:18]} Bg4 {[%emt 0:01:00]} 21. Bf3 {[%emt 0:00:45]} Bxf3 {[%emt 0:11:52]} 22. Rxf3 {[%emt 0:00:03]} Ra8 {[%emt 0:00:06]} 23. d4 {[%emt 0:20:39]} Qe7 {[%emt 0:00:39]} 24. dxc5 {[%emt 0:05:40]} dxc5 {[%emt 0:00:38]} 25. Qd5 {[%emt 0:00:29]} Ne5 {[%emt 0:00:29]} 26. Rff1 {[%emt 0:03:55]} Rac8 {[%emt 0:09:41]} 27. Rbd1 {[%emt 0:01:36]} Rfe8 {[%emt 0:01:53]} 28. h3 {[%emt 0:03:49]} Red8 {[%emt 0:09:21]} 29. Bxc5 {[%emt 0:00:08]} Qg5 {[%emt 0:00:04]} 30. Bd6 {[%emt 0:01:09]} Qe3+ {[%emt 0:00:23]} 31. Rf2 {[%emt 0:00:09]} Qxb3 {[%emt 0:00:50]} 32. c5 {[%emt 0:01:41]} Qe3 {[%emt 0:02:06]} 33. Kf1 {[%emt 0:08:23]} b3 {[%emt 0:01:58]} 34. Qd4 {[%emt 0:11:21]} Ng4 {[%emt 0:00:48]} 35. hxg4 {[%emt 0:04:44]} Bxd4 {[%emt 0:00:06]} 36. Nxd4 {[%emt 0:00:10]} Qxe4 {[%emt 0:01:39]} 37. Kg1 {[%emt 0:01:38]} Qxg4 {[%emt 0:00:47]} 38. Rd3 {[%emt 0:00:21]} Re8 {[%emt 0:06:19]} 39. Nxb3 {[%emt 0:00:52]} Re1+ {[%emt 0:00:21]} 40. Rf1 {[%emt 0:01:19]} Qe2 {[%emt 0:00:24]} 0-1

[Event "FRA-ch Women 2018"]
[Site "Nimes"]
[Date "2018.08.22"]
[Round "5"]
[White "Leconte, Maria"]
[Black "Benmesbah, Natacha"]
[Result "1-0"]
[ECO "B22"]
[WhiteElo "2224"]
[BlackElo "2255"]
[Annotator "NA"]
[PlyCount "101"]
[EventDate "2018.08.18"]
[EventType "tourn"]
[EventCountry "FRA"]
[SourceTitle "playchess.com"]
[Source "ChessBase"]
[SourceQuality "1"]
[TimeControl "40/5400+30:1800+30"]

1. e4 {[%emt 0:00:00]} c5 {[%emt 0:02:53]} 2. c3 {[%emt 0:00:00]} d5 {[%emt 0:00:50]} 3. exd5 {[%emt 0:00:00]} Qxd5 {[%emt 0:00:04]} 4. d4 {[%emt 0:00:07]} Nc6 {[%emt 0:00:08]} 5. Nf3 {[%emt 0:00:07]} Bf5 {[%emt 0:00:40]} 6. Be3 {[%emt 0:00:16]} Nf6 {[%emt 0:01:22]} 7. Na3 {[%emt 0:00:35]} cxd4 {[%emt 0:04:45]} 8. Bc4 {[%emt 0:00:14]} Qd7 {[%emt 0:20:54]} 9. Nxd4 {[%emt 0:00:51]} Nxd4 {[%emt 0:01:01]} 10. Bxd4 {[%emt 0:00:08] LiveBook: 4 Games} a6 {[%emt 0:01:03]} 11. Be2 {[%emt 0:00:24]} e6 {[%emt 0:05:57]} 12. Nc4 {[%emt 0:01:11]} Rd8 {[%emt 0:00:23]} 13. Bb6 {[%emt 0:12:46]} Rc8 {[%emt 0:03:04]} 14. Qb3 {[%emt 0:12:07]} Be7 {[%emt 0:01:15]} 15. Rd1 $11 {[%emt 0:19:17]} Qc6 {[%emt 0:01:44]} 16. O-O {[%emt 0:15:42]} Nd5 {[%emt 0:00:51]} 17. Rfe1 {[%emt 0:12:34]} O-O {[%emt 0:00:25]} 18. Bd4 {[%emt 0:00:48]} Nf4 {[%emt 0:12:25]} 19. Bf1 {[%emt 0:00:05]} b5 {[%emt 0:00:48]} 20. Ne3 {[%emt 0:03:35]} Be4 {[%emt 0:03:55]} 21. f3 {[%emt 0:00:36]} Bg6 {[%emt 0:01:18]} 22. c4 {[%emt 0:04:43]} bxc4 {[%emt 0:02:02]} 23. Qxc4 {[%emt 0:01:11]} a5 {[%emt 0:06:04]} 24. Qxc6 {[%emt 0:00:35]} Rxc6 {[%emt 0:00:03]} 25. g3 {[%emt 0:00:09]} Nh5 {[%emt 0:00:10]} 26. Bb5 {[%emt 0:02:37]} Rcc8 {[%emt 0:00:55]} 27. Rc1 {[%emt 0:01:04]} Nf6 {[%emt 0:01:39]} 28. Kg2 {[%emt 0:01:05]} Bb4 {[%emt 0:00:34]} 29. Bc3 {[%emt 0:01:04]} Bxc3 {[%emt 0:03:39]} 30. Rxc3 {[%emt 0:00:07]} Rb8 {[%emt 0:00:36]} 31. a4 {[%emt 0:01:22]} Rfd8 {[%emt 0:00:05]} 32. Re2 {[%emt 0:04:34]} h5 {[%emt 0:01:13]} 33. Rc5 {[%emt 0:02:29]} Rd4 {[%emt 0:00:35]} 34. Bc4 {[%emt 0:01:20]} Ra8 {[%emt 0:00:23]} 35. Kf2 {[%emt 0:00:46]} Nd7 {[%emt 0:04:14]} 36. Rb5 {[%emt 0:00:19]} Ra7 {[%emt 0:01:33]} 37. b3 {[%emt 0:00:27]} Kh7 {[%emt 0:01:16]} 38. h4 {[%emt 0:00:06]} Nf6 {[%emt 0:02:11]} 39. Ke1 {[%emt 0:00:55]} Bd3 {[%emt 0:00:42]} 40. Rd2 {[%emt 0:01:23]} Bxc4 {[%emt 0:02:02]} 41. Nxc4 {[%emt 0:06:15]} Rad7 {[%emt 0:03:39]} 42. Rxd4 {[%emt 0:02:58]} Rxd4 {[%emt 0:00:04]} 43. Ke2 {[%emt 0:00:04]} Nd5 {[%emt 0:00:18]} 44. Rxa5 {[%emt 0:00:11]} Nc3+ {[%emt 0:00:23]} 45. Ke3 {[%emt 0:00:38]} Rd1 {[%emt 0:00:05]} 46. Rxh5+ {[%emt 0:00:19]} Kg6 {[%emt 0:00:03]} 47. Rc5 {[%emt 0:01:41]} Nd5+ {[%emt 0:00:12]} 48. Ke2 {[%emt 0:01:50]} Rg1 {[%emt 0:02:06]} 49. Ne3 {[%emt 0:04:34]} Nf6 {[%emt 0:02:51]} 50. a5 {[%emt 0:01:05]} Rxg3 {[%emt 0:00:08]} 51. a6 {[%emt 0:02:04]} 1-0

[Event "FRA-ch Women 2018"]
[Site "Nimes"]
[Date "2018.08.22"]
[Round "5"]
[White "Bollengier, Andreea"]
[Black "Afraoui, Anaelle"]
[Result "1-0"]
[ECO "E68"]
[WhiteElo "2219"]
[BlackElo "2041"]
[Annotator "NA"]
[PlyCount "111"]
[EventDate "2018.08.18"]
[EventType "tourn"]
[EventCountry "FRA"]
[SourceTitle "playchess.com"]
[Source "ChessBase"]
[SourceQuality "1"]
[TimeControl "40/5400+30:1800+30"]

1. c4 {[%emt 0:00:00]} Nf6 {[%emt 0:00:00]} 2. Nc3 {[%emt 0:00:00]} g6 {[%emt 0:00:00]} 3. g3 {[%emt 0:00:00]} Bg7 {[%emt 0:00:00]} 4. Bg2 {[%emt 0:00:05]} O-O {[%emt 0:00:06]} 5. Nf3 {[%emt 0:05:01]} d6 {[%emt 0:00:25]} 6. O-O {[%emt 0:00:30]} e5 {[%emt 0:00:45]} 7. d4 {[%emt 0:03:35]} Nbd7 {[%emt 0:04:28]} 8. e4 {[%emt 0:00:26]} exd4 {[%emt 0:01:14]} 9. Nxd4 {[%emt 0:00:08]} Re8 {[%emt 0:02:28]} 10. Re1 {[%emt 0:03:59]} a6 {[%emt 0:02:25]} 11. h3 {[%emt 0:02:19]} Rb8 {[%emt 0:01:19]} 12. Be3 {[%emt 0:04:30]} Ne5 {[%emt 0:01:10]} 13. b3 {[%emt 0:00:31]} c5 {[%emt 0:01:36]} 14. Nc2 {[%emt 0:05:42]} b5 {[%emt 0:04:23]} 15. f4 {[%emt 0:01:20]} Ned7 {[%emt 0:00:40]} 16. cxb5 {[%emt 0:14:29]} axb5 {[%emt 0:00:49]} 17. Qxd6 {[%emt 0:04:30]} b4 $15 {[%emt 0:10:27] LiveBook: 3 Partien} 18. e5 {[%emt 0:01:38]} Rb6 {[%emt 0:07:33]} 19. Qd1 {[%emt 0:05:58]} bxc3 {[%emt 0:06:53]} 20. exf6 {[%emt 0:00:08]} Bxf6 {[%emt 0:01:38]} 21. Kh2 {[%emt 0:06:21]} Rbe6 {[%emt 0:12:28]} 22. a4 {[%emt 0:12:38]} Qc7 {[%emt 0:08:06]} 23. Bd5 {[%emt 0:01:27]} Rd6 {[%emt 0:08:14]} 24. Qf3 {[%emt 0:00:25]} Rd8 {[%emt 0:12:29]} 25. Red1 {[%emt 0:15:42]} Bg7 {[%emt 0:06:23]} 26. Na3 {[%emt 0:06:47]} c2 {[%emt 0:04:30]} 27. Nb5 {[%emt 0:00:38]} Bxa1 {[%emt 0:01:11]} 28. Nxc7 {[%emt 0:00:06]} cxd1=Q {[%emt 0:00:00]} 29. Qxd1 {[%emt 0:00:02]} Nf6 {[%emt 0:01:19]} 30. Bxc5 {[%emt 0:01:20]} R6d7 {[%emt 0:00:41]} 31. Qxa1 {[%emt 0:03:57]} Nxd5 {[%emt 0:00:11]} 32. Nxd5 {[%emt 0:00:30]} Rxd5 {[%emt 0:00:05]} 33. Be3 {[%emt 0:00:16]} Rd3 {[%emt 0:00:52]} 34. Qe5 {[%emt 0:00:38]} Bb7 {[%emt 0:00:42]} 35. b4 h5 {[%emt 0:01:12]} 36. g4 {[%emt 0:01:29]} h4 {[%emt 0:00:30]} 37. Kg1 {[%emt 0:00:26]} Rd1+ {[%emt 0:00:38]} 38. Kf2 {[%emt 0:00:00]} Rh1 {[%emt 0:00:30]} 39. Bd4 {[%emt 0:01:26]} Rh2+ {[%emt 0:00:14]} 40. Ke1 {[%emt 0:00:21]} Rh1+ {[%emt 0:00:16]} 41. Kf2 {[%emt 0:30:37]} Rh2+ {[%emt 0:03:22]} 42. Ke1 {[%emt 0:00:00]} Rh1+ {[%emt 0:07:30]} 43. Kd2 {[%emt 0:00:00]} Rh2+ {[%emt 0:00:54]} 44. Kd3 {[%emt 0:00:00]} Rxh3+ {[%emt 0:01:50]} 45. Kc4 {[%emt 0:00:00]} Rxd4+ {[%emt 0:05:05]} 46. Kxd4 {[%emt 0:00:00]} Bg2 {[%emt 0:02:21]} 47. f5 {[%emt 0:00:00]} Rg3 {[%emt 0:09:21]} 48. Qe8+ {[%emt 0:00:00]} Kg7 {[%emt 0:00:59]} 49. f6+ {[%emt 0:00:00]} Kh6 {[%emt 0:02:18]} 50. Qxf7 {[%emt 0:00:00]} Rxg4+ {[%emt 0:00:06]} 51. Ke3 {[%emt 0:00:00]} Kg5 {[%emt 0:01:35]} 52. Qe7 {[%emt 0:00:00]} Re4+ {[%emt 0:01:00]} 53. Qxe4 {[%emt 0:00:00]} Bxe4 {[%emt 0:00:03]} 54. f7 {[%emt 0:00:00]} h3 {[%emt 0:00:06]} 55. f8=Q {[%emt 0:00:00]} h2 {[%emt 0:00:05]} 56. Qf4+ {[%emt 0:00:00]} 1-0